bitfinex-derivatives/quotes_BNBF0:USTF0_20250521
["timestamp","ask_amount","ask_price","bid_price","bid_amount"]
[1747792872341,0.26769128,650.9,649.49,0.62907895]
[1747792872538,0.26769128,650.9,649.5,0.62907895]
[1747792872739,0.26769128,650.9,649.51,0.62907895]
[1747792873038,0.26769128,650.9,649.52,0.62907895]
[1747792873239,0.26769128,650.9,649.53,0.62907895]
[1747792873440,0.26769128,650.9,649.54,0.62907895]
[1747792873739,0.26769128,650.9,649.53,0.30789799]
[1747792873940,0.26769128,650.9,649.54,0.62895709]
[1747792874237,1.023,650.91,649.55,0.62895]
[1747792874442,0.26767172,650.89,649.53,0.30789799]
[1747792874741,0.26767172,650.89,649.54,0.62893227]
[1747792874937,0.26767172,650.89,649.55,0.62893227]
[1747792875141,0.26767172,650.89,649.56,0.62893123]
[1747792875344,0.26767172,650.89,649.54,0.30789799]
[1747792875543,0.26767172,650.89,649.55,0.62893328]
[1747792875843,0.26767172,650.89,649.56,0.62893328]
[1747792876043,0.26767172,650.89,649.3,0.25676806]
[1747792876244,0.26767172,650.89,649.31,0.62891365]
[1747792876438,0.26767172,650.89,649.32,0.62891365]
[1747792876643,0.26767172,650.89,649.33,0.62891365]
[1747792876843,0.26767172,650.89,649.34,0.62891365]
[1747792877146,1.023,650.91,649.35,1.75959451]
[1747792877343,0.26769231,650.88,649.36,1.75959451]
[1747792877638,0.26769231,650.88,649.37,0.62889277]
[1747792877842,0.26769231,650.88,649.38,0.62889277]
[1747792878041,0.26769231,650.88,649.39,1.75959451]
[1747792878243,0.26769231,650.88,649.4,0.62889277]
[1747792878443,0.26769231,650.88,649.41,1.75959451]
[1747792878644,0.26769231,650.88,649.42,0.62889277]
[1747792878838,0.26769231,650.88,649.43,0.62889277]
[1747792879042,0.26769231,650.88,649.44,0.62889277]
[1747792879347,0.26769231,650.88,649.45,0.62889277]
[1747792879545,0.26769231,650.88,649.46,0.62889277]
[1747792879742,0.26769231,650.88,649.47,1.75959451]
[1747792880045,1.023,650.91,649.48,1.75959451]
[1747792880246,1.023,650.91,649.49,0.62889277]
[1747792880546,1.023,650.91,649.5,0.62889277]
[1747792880745,1.023,650.91,649.51,0.62889277]
[1747792880944,1.023,650.91,649.52,0.62889277]
[1747792881145,1.023,650.91,649.53,0.62889277]
[1747792881348,0.26768098,650.9,649.54,0.62889277]
[1747792881541,0.26768098,650.9,649.27,1.014]
[1747792881746,0.26768098,650.9,649.28,0.62905616]
[1747792881943,0.26768098,650.9,649.29,0.62905616]
[1747792882147,0.26768098,650.9,649.3,0.62905616]
[1747792882347,0.26768098,650.9,649.31,0.6290867]
[1747792882548,0.26768098,650.9,649.32,1.75777924]
[1747792882745,0.26768098,650.9,649.33,0.93692487]
[1747792882949,0.26768098,650.9,649.34,0.6290867]
[1747792883150,1.023,650.91,649.35,0.6290867]
[1747792883450,0.26769849,650.89,649.36,0.6290867]
[1747792883659,0.26769849,650.89,649.37,0.6290867]
[1747792883843,0.26769849,650.89,649.38,1.75777924]
[1747792884047,0.26769849,650.89,649.39,0.6290867]
[1747792884250,0.26769849,650.89,649.4,1.75777924]
[1747792884444,0.26769849,650.89,649.41,0.6290867]
[1747792884644,0.26769849,650.89,649.42,1.75777924]
[1747792884848,0.26769849,650.89,649.43,0.6290867]
[1747792885050,0.26769849,650.89,649.44,1.75777924]
[1747792885257,0.26769849,650.89,649.45,0.6290867]
[1747792885450,0.26769849,650.89,649.46,0.6290867]
[1747792885650,0.26769849,650.89,649.47,0.6290867]
[1747792885850,3.80452173,650.88,649.48,0.6290867]
[1747792886151,3.80452173,650.88,649.27,1.014]
[1747792886353,0.26769951,650.87,649.28,0.62904524]
[1747792886554,0.26769951,650.87,649.29,2.06639834]
[1747792886850,0.26769951,650.87,649.3,1.75851722]
[1747792887051,0.26769951,650.87,649.31,0.62904524]
[1747792887251,0.26769951,650.87,649.32,0.62902072]
[1747792887452,0.26769951,650.87,649.33,1.7584927]
[1747792887656,0.26769951,650.87,649.34,0.62902072]
[1747792887951,0.26769951,650.87,649.35,0.62902072]
[1747792888148,0.26769951,650.87,649.36,0.62902072]
[1747792888354,0.26769951,650.87,649.37,1.7584927]
[1747792888553,0.26769951,650.87,649.38,0.62902072]
[1747792888752,0.26769951,650.87,649.39,0.62902072]
[1747792889052,3.80452173,650.88,649.4,2.06639196]
[1747792889252,3.80452173,650.88,649.41,0.62903886]
[1747792889449,3.80452173,650.88,649.42,0.62903886]
[1747792889748,3.80452173,650.88,649.43,0.62903886]
[1747792889952,3.80452173,650.88,649.44,0.62903886]
[1747792890148,3.80452173,650.88,649.45,0.62903886]
[1747792890350,0.26770672,650.87,649.46,0.62903886]
[1747792890550,0.26770672,650.87,649.47,0.62906063]
[1747792890747,0.855,650.86,649.44,0.30788112]
[1747792890950,0.855,650.86,649.45,0.62906063]
[1747792891153,0.855,650.86,649.46,0.62906063]
[1747792891351,0.855,650.86,649.47,0.30788112]
[1747792892755,0.855,650.86,649.41,1.221]
[1747792892948,0.855,650.86,649.42,0.62910269]
[1747792893148,0.855,650.86,649.43,0.62910269]
[1747792893449,0.855,650.86,649.41,1.221]
[1747792893652,0.855,650.86,649.44,0.30790019]
[1747792894957,0.855,650.86,649.45,0.30790019]
[1747792895357,0.26772526,650.85,649.45,0.30790019]
[1747792896358,0.26772526,650.85,649.46,0.30790019]
[1747792898061,0.855,650.86,649.46,0.30790019]
[1747792898261,0.855,650.86,649.41,1.221]
[1747792898460,0.26773556,650.84,649.42,0.62921906]
[1747792898658,0.26773556,650.84,649.41,1.221]
[1747792898858,0.26773556,650.84,649.42,0.62926285]
[1747792899057,0.26773556,650.84,649.41,1.221]
[1747792899253,0.26773556,650.84,649.42,0.62924529]
[1747792899455,0.26773556,650.84,649.43,0.30790155]
[1747792900961,0.26773556,650.84,649.44,0.30790155]
[1747792901763,0.26773556,650.84,649.41,1.221]
[1747792901962,0.26773556,650.84,649.42,0.62927175]
[1747792902162,0.26773556,650.84,649.43,0.62927175]
[1747792902462,0.26773556,650.84,649.41,1.221]
[1747792902656,0.26773556,650.84,649.42,0.62930933]
[1747792902857,0.26773556,650.84,649.41,1.221]
[1747792903157,0.26773556,650.84,649.42,0.62930933]
[1747792903355,0.26773556,650.84,649.18,0.25676806]
[1747792903659,0.26773556,650.84,649.43,0.30790082]
[1747792904163,0.855,650.86,649.43,0.30790082]
[1747792905363,0.26774586,650.85,649.43,0.30790082]
[1747792905567,0.26774586,650.85,649.43,1.88990082]
[1747792905763,0.26774586,650.85,649.44,0.30790082]
[1747792907064,0.855,650.86,649.45,0.30790082]
[1747792907258,0.26772114,650.84,649.45,0.30790082]
[1747792908265,0.26772114,650.84,649.46,0.30790082]
[1747792909465,0.26772114,650.84,649.47,0.30790082]
[1747792910066,0.855,650.86,649.47,0.30790082]
[1747792910761,0.855,650.86,649.43,1.582]
[1747792911368,0.26772732,650.85,649.43,1.582]
[1747792912673,3.80452173,650.77,649.44,0.30792061]
[1747792913373,0.26778191,650.76,649.44,0.30792061]
[1747792913773,0.26778191,650.76,649.43,1.582]
[1747792919079,3.80452173,650.77,649.43,1.582]
[1747792919473,0.26780458,650.75,649.43,1.582]
[1747792920477,1.294,650.74,649.43,1.582]
[1747792925281,0.26779531,650.73,649.43,1.582]
[1747792925483,3.80452173,650.5,649.43,1.582]
[1747792928480,0.26782004,650.49,649.43,1.582]
[1747792931084,3.80452173,650.5,649.43,1.582]
[1747792932386,0.26781488,650.49,649.43,1.582]
[1747792933987,3.80452173,650.5,649.43,1.582]
[1747792934486,1.294,650.74,649.43,1.582]
[1747792935186,0.26776234,650.73,649.43,1.582]
[1747792937187,1.294,650.74,649.43,1.582]
[1747792937387,0.26776234,650.72,649.43,1.582]
[1747792941186,3.79569241,650.69,649.43,1.582]
[1747792944496,0.26777573,650.68,649.43,1.582]
[1747792949295,5.08069241,650.69,649.43,1.582]
[1747792949495,0.26777573,650.67,649.43,1.582]
[1747792952096,5.08069241,650.69,649.43,1.582]
[1747792952500,0.26777573,650.66,649.43,1.582]
[1747792955200,1.285,650.69,649.43,1.582]
[1747792956400,0.26778809,650.68,649.43,1.582]
[1747792958104,3.79569241,650.8,649.43,1.582]
[1747792959501,1.22277676,650.79,649.43,1.582]
[1747792964111,0.955,650.79,649.43,1.582]
[1747792965408,0.26774895,650.78,649.43,1.582]
[1747792967113,0.955,650.79,649.43,1.582]
[1747792968314,0.26774895,650.78,649.43,1.582]
[1747792970118,0.955,650.79,649.43,1.582]
[1747792970619,3.79569241,650.81,649.43,1.582]
[1747792971319,0.26774483,650.8,649.43,1.582]
[1747792973221,3.79569241,650.66,649.43,1.582]
[1747792974324,1.078,650.65,649.43,1.582]
[1747792977421,0.26776131,650.64,649.43,1.582]
[1747792979130,1.078,650.65,649.43,1.582]
[1747792979628,0.26778191,650.64,649.43,1.582]
[1747792982129,1.078,650.65,649.43,1.582]
[1747792982535,0.26778809,650.63,649.43,1.582]
[1747792985431,3.79569241,650.51,649.43,1.582]
[1747792991635,0.26780458,650.5,649.43,1.582]
[1747792997143,3.79569241,650.51,649.43,1.582]
[1747792997341,3.79569241,650.54,649.43,1.582]
[1747792997542,0.26780458,650.49,649.43,1.582]
[1747793000045,3.79569241,650.54,649.43,1.582]
[1747793000540,0.26780149,650.48,649.43,1.582]
[1747793003146,3.79569241,650.54,649.43,1.582]
[1747793003447,0.26780149,650.47,649.43,1.582]
[1747793005445,1.287,650.46,649.43,1.582]
[1747793006448,0.26780973,650.45,649.43,1.582]
[1747793012251,1.287,650.46,649.43,1.582]
[1747793013447,0.26787158,650.45,649.43,1.582]
[1747793015352,1.287,650.46,649.43,1.582]
[1747793015545,0.26787982,650.44,649.43,1.582]
[1747793018148,3.79569241,650.74,649.43,1.582]
[1747793018454,0.26785096,650.43,649.43,1.582]
[1747793018654,3.79569241,650.74,649.43,1.582]
[1747793019556,0.26785096,650.73,649.43,1.582]
[1747793019757,0.26785096,650.73,648.58,0.26785096]
[1747793019955,0.26785096,650.73,648.59,0.62862596]
[1747793020148,0.26785096,650.73,648.6,1.76217075]
[1747793020352,1.168,650.72,648.61,0.62862596]
[1747793020549,1.168,650.72,648.62,1.76217075]
[1747793020749,1.168,650.72,648.63,0.62862596]
[1747793020950,1.168,650.72,648.64,1.76217075]
[1747793021150,1.168,650.72,648.65,0.62862596]
[1747793021354,1.168,650.72,648.66,0.62862596]
[1747793021657,0.26792004,650.71,648.67,1.76201072]
[1747793021850,0.26792004,650.71,648.68,0.62846593]
[1747793022051,0.26792004,650.71,648.69,1.76201072]
[1747793022251,0.26792004,650.71,648.7,0.62846593]
[1747793022555,0.26792004,650.71,648.71,1.76201072]
[1747793022850,0.26792004,650.71,648.72,1.76201072]
[1747793023054,0.26792004,650.71,648.73,0.62846593]
[1747793023252,0.26792004,650.71,648.74,0.62846593]
[1747793023458,0.26792004,650.71,648.75,1.76201072]
[1747793023651,0.26792004,650.71,648.76,0.62846593]
[1747793023854,0.26792004,650.71,648.77,1.76201072]
[1747793024054,0.26792004,650.71,648.78,0.62846593]
[1747793024256,1.168,650.72,648.79,1.76201072]
[1747793024457,0.26790354,650.7,648.8,0.62846593]
[1747793024658,0.26790354,650.7,648.81,0.62846593]
[1747793024853,0.26790354,650.7,648.82,0.62846593]
[1747793025059,3.79569241,650.69,648.68,1.345]
[1747793025370,3.79569241,650.69,648.69,1.76262311]
[1747793025558,3.79569241,650.69,648.7,0.62836707]
[1747793025755,3.79569241,650.69,648.71,0.62836707]
[1747793025953,3.79569241,650.69,648.72,1.13425604]
[1747793026154,3.79569241,650.69,648.73,0.93651413]
[1747793026359,3.79569241,650.69,648.74,0.62836707]
[1747793027061,3.79569241,650.69,648.75,0.30814706]
[1747793027360,3.79569241,650.69,648.76,0.62836707]
[1747793027562,3.79569241,650.69,648.77,0.62836707]
[1747793027759,3.79569241,650.69,648.78,0.62836707]
[1747793027955,3.79569241,650.69,648.79,0.9364715]
[1747793028161,3.79569241,650.69,648.79,0.30814706]
[1747793028470,3.79569241,650.69,648.8,0.62833749]
[1747793028663,3.79569241,650.69,648.81,0.62831502]
[1747793028857,3.79569241,650.69,648.82,0.62831502]
[1747793029059,3.79569241,650.69,648.79,0.30814706]
[1747793029259,0.26790354,650.7,648.82,0.30814706]
[1747793029559,0.26790354,650.7,648.83,0.62828969]
[1747793029756,0.26790354,650.7,648.84,0.62828311]
[1747793030058,0.26790354,650.7,648.82,0.30814706]
[1747793030258,1.168,650.72,648.85,0.30814706]
[1747793031164,1.168,650.72,648.86,0.30814706]
[1747793031462,0.26789735,650.71,648.86,0.30814706]
[1747793033266,1.168,650.72,648.86,0.30814706]
[1747793033565,1.168,650.72,648.87,0.30814706]
[1747793034563,0.2679056,650.71,648.88,0.30814706]
[1747793035366,0.2679056,650.71,648.67,0.2679056]
[1747793035562,0.2679056,650.71,648.68,0.62870851]
[1747793035864,0.2679056,650.71,648.67,0.2679056]
[1747793035865,0.2679056,650.71,648.69,1.76599286]
[1747793036065,0.2679056,650.71,648.7,0.62870851]
[1747793036260,1.168,650.72,648.71,1.76599286]
[1747793036462,1.168,650.72,648.72,0.62870851]
[1747793036661,1.168,650.72,648.73,1.76603356]
[1747793036866,1.168,650.72,648.74,0.62874921]
[1747793037061,1.168,650.72,648.75,0.62874921]
[1747793037262,1.168,650.72,648.76,0.62874921]
[1747793037468,0.26791591,650.71,648.77,0.62874921]
[1747793037766,0.26791591,650.71,648.78,0.30815882]
[1747793039169,5.31396938,650.45,648.77,1.39]
[1747793040366,0.26794067,650.44,648.77,1.39]
[1747793040669,0.26794067,650.44,648.78,0.62883443]
[1747793040870,0.26794067,650.44,648.79,0.62883443]
[1747793041070,0.26794067,650.44,648.8,0.62883443]
[1747793041270,0.26794067,650.44,648.77,1.39]
[1747793041471,3.79569241,650.36,648.8,0.30814204]
[1747793041666,3.79569241,650.36,648.81,0.62881271]
[1747793041868,3.79569241,650.36,648.82,0.62881527]
[1747793042065,3.79569241,650.36,648.8,0.30814204]
[1747793042267,3.79569241,650.36,648.81,0.62881808]
[1747793042570,3.79569241,650.36,648.82,0.93696544]
[1747793042767,0.26794583,650.35,648.82,0.30814204]
[1747793044167,0.26794583,650.35,648.83,0.30814204]
[1747793045172,3.79569241,650.36,648.83,0.30814204]
[1747793045572,0.26793757,650.34,648.84,0.30814204]
[1747793047174,0.26793757,650.34,648.77,1.39]
[1747793047368,0.26793757,650.34,648.78,0.6288787]
[1747793047572,0.26793757,650.34,648.77,1.39]
[1747793047770,0.26793757,650.34,648.78,0.62890342]
[1747793047970,0.26793757,650.34,648.77,1.39]
[1747793048174,3.79569241,650.36,648.78,0.62890403]
[1747793048369,3.79569241,650.36,648.77,1.39]
[1747793048569,0.26793757,650.33,648.78,0.62893282]
[1747793048772,0.26793757,650.33,648.79,0.30813832]
[1747793050275,0.26793757,650.33,648.77,1.39]
[1747793050276,0.26793757,650.33,648.8,0.30813832]
[1747793051177,3.79569241,650.36,648.8,0.30813832]
[1747793051577,3.79569241,650.36,648.81,0.30813832]
[1747793052477,0.26793138,650.35,648.81,0.30813832]
[1747793052678,1.50093138,650.35,648.82,0.62908597]
[1747793052879,1.50093138,650.35,648.81,0.30813832]
[1747793053077,1.50093138,650.35,648.82,0.93722398]
[1747793053273,1.50093138,650.35,648.83,0.62911671]
[1747793053478,1.50093138,650.35,648.82,0.30813832]
[1747793053678,1.50093138,650.35,648.83,0.62911669]
[1747793053879,1.50093138,650.35,648.82,0.30813832]
[1747793054174,1.233,650.35,648.83,0.30813832]
[1747793054979,1.233,650.35,648.84,0.6292075]
[1747793055180,1.233,650.35,648.83,0.30813832]
[1747793055375,1.233,650.35,648.84,0.6292021]
[1747793055574,0.26791901,650.34,648.84,1.13767527]
[1747793055780,0.26791901,650.34,648.85,0.93740933]
[1747793056079,0.26791901,650.34,648.86,1.76694628]
[1747793056274,0.26791901,650.34,648.87,0.62927101]
[1747793056472,0.26791901,650.34,648.88,0.62927101]
[1747793056677,0.26791901,650.34,648.89,1.76694628]
[1747793056974,0.26791901,650.34,648.9,2.62040933]
[1747793057181,1.233,650.35,648.91,1.76694628]
[1747793057379,1.233,650.35,648.92,0.62927101]
[1747793057579,1.233,650.35,648.93,0.62927101]
[1747793057780,1.233,650.35,648.94,0.62927101]
[1747793057980,1.233,650.35,648.95,0.62927101]
[1747793058180,1.233,650.35,648.96,0.62927101]
[1747793058374,0.26789529,650.34,648.97,0.62927101]
[1747793058575,0.26789529,650.34,648.98,0.62927101]
[1747793058778,0.26789529,650.34,648.99,0.62927101]
[1747793058980,0.26789529,650.34,649.0,0.62927101]
[1747793059182,0.26789529,650.34,649.01,0.62927101]
[1747793059379,0.26789529,650.34,649.02,0.62927101]
[1747793059584,0.26789529,650.34,649.03,0.62927101]
[1747793059782,0.26789529,650.34,649.04,0.62927101]
[1747793059975,0.26789529,650.34,649.05,0.62946835]
[1747793060181,1.233,650.35,649.06,0.62946835]
[1747793060381,1.233,650.35,649.07,0.62946835]
[1747793060579,1.233,650.35,648.9,1.683]
[1747793060782,0.26788395,650.34,648.91,0.62953521]
[1747793060984,0.26788395,650.34,648.92,1.76761949]
[1747793061183,0.26788395,650.34,648.93,0.62953521]
[1747793061383,0.26788395,650.34,648.94,1.76761949]
[1747793061584,0.26788395,650.34,648.95,0.62953521]
[1747793061879,0.26788395,650.34,648.9,1.683]
[1747793061880,0.26788395,650.34,648.96,1.76761949]
[1747793062085,0.26788395,650.34,648.97,0.93760402]
[1747793062286,0.26788395,650.34,648.98,0.62953521]
[1747793062487,0.26788395,650.34,648.99,1.76761949]
[1747793062786,0.26788395,650.34,649.0,0.62953521]
[1747793062986,0.26788395,650.34,649.01,0.62953521]
[1747793063286,1.233,650.35,649.02,2.0756883]
[1747793063484,1.233,650.35,649.03,0.62953521]
[1747793063686,0.26788498,650.33,649.04,1.76761949]
[1747793063884,0.26788498,650.33,649.05,0.62953521]
[1747793064085,0.26788498,650.33,649.06,0.62953521]
[1747793064286,0.26788498,650.33,649.07,0.62953521]
[1747793064489,0.26788498,650.33,649.08,0.62953521]
[1747793064689,0.26788498,650.33,649.09,0.62953521]
[1747793064888,0.26788498,650.33,649.1,1.76723321]
[1747793065083,0.26788498,650.33,648.9,1.683]
[1747793065084,0.26788498,650.33,649.11,0.62981668]
[1747793065288,0.26788498,650.33,649.12,0.62981668]
[1747793065586,0.26788498,650.33,649.13,0.62981668]
[1747793065788,0.26788498,650.33,648.9,1.683]
[1747793065987,0.26788498,650.33,648.91,1.76777421]
[1747793066190,1.233,650.35,648.92,0.62986096]
[1747793066389,1.233,650.35,648.93,1.76777421]
[1747793066590,0.26788704,650.32,648.94,1.76777421]
[1747793066785,0.26788704,650.32,648.95,0.62986096]
[1747793066989,0.26788704,650.32,648.96,0.62986096]
[1747793067187,0.26788704,650.32,648.97,0.62986096]
[1747793067391,0.26788704,650.32,648.98,1.76777421]
[1747793067590,0.26788704,650.32,648.99,1.76777421]
[1747793067790,0.26788704,650.32,649.0,0.62986096]
[1747793067994,0.26788704,650.32,649.01,0.62986096]
[1747793068193,0.26788704,650.32,649.02,1.76777421]
[1747793068394,0.26788704,650.32,649.03,0.62986096]
[1747793068594,0.26788704,650.32,649.04,0.62986096]
[1747793068790,0.26788704,650.32,649.05,1.76777421]
[1747793068988,0.26788704,650.32,649.06,1.76777421]
[1747793069191,1.233,650.35,649.07,0.62986096]
[1747793069494,0.26785302,650.31,649.08,1.76777421]
[1747793069689,0.26785302,650.31,649.09,0.62986096]
[1747793069994,0.26785302,650.31,649.1,1.76777421]
[1747793070196,0.26785302,650.31,649.11,0.62998171]
[1747793070395,0.26785302,650.31,649.12,1.76789496]
[1747793070596,0.26785302,650.31,649.13,0.62998171]
[1747793070895,0.26785302,650.31,649.14,0.62998171]
[1747793071095,0.26785302,650.31,649.15,0.62998842]
[1747793071295,0.26785302,650.31,649.16,0.93803134]
[1747793071590,0.26785302,650.31,649.17,0.62998842]
[1747793071894,0.26785302,650.31,649.16,0.30804292]
[1747793072095,1.233,650.35,649.17,0.6298735]
[1747793072296,1.233,650.35,649.16,0.30804292]
[1747793072596,0.26788807,650.3,649.16,0.30804292]
[1747793072797,0.26788807,650.3,649.17,0.30804292]
[1747793074395,0.26788807,650.3,648.9,1.683]
[1747793074596,0.26788807,650.3,648.91,0.62980059]
[1747793074796,0.26788807,650.3,648.92,1.77159053]
[1747793074992,0.26788807,650.3,648.93,0.62980059]
[1747793075194,1.233,650.35,648.94,1.77159053]
[1747793075494,1.233,650.35,648.95,1.77159053]
[1747793075693,1.233,650.35,648.96,0.62980059]
[1747793075895,1.233,650.35,648.97,1.77159053]
[1747793076095,1.233,650.35,648.98,0.62980059]
[1747793076302,1.233,650.35,648.99,1.77159053]
[1747793076498,0.26789323,650.34,649.0,0.62980059]
[1747793076698,0.26789323,650.34,649.01,0.62980059]
[1747793076898,0.26789323,650.34,649.02,0.62980059]
[1747793077199,0.26789323,650.34,649.03,0.62980059]
[1747793077398,0.26789323,650.34,649.04,0.62980059]
[1747793077603,0.26789323,650.34,649.05,0.62980059]
[1747793077796,0.26789323,650.34,649.06,0.62980059]
[1747793077994,0.26789323,650.34,649.07,0.62980059]
[1747793078195,1.233,650.35,649.08,0.62980059]
[1747793078398,1.233,650.35,649.04,0.30807092]
[1747793078599,1.233,650.35,649.05,0.62993805]
[1747793078800,1.233,650.35,649.06,0.62993805]
[1747793078993,1.233,650.35,649.07,0.62993805]
[1747793079196,1.233,650.35,649.08,0.62993805]
[1747793079397,0.26788395,650.34,649.04,0.30807092]
[1747793079600,0.26788395,650.34,649.09,0.30807092]
[1747793080500,0.26788395,650.34,649.1,0.30807092]
[1747793081202,3.79569241,650.53,649.1,0.30807092]
[1747793081501,3.79569241,650.32,649.11,0.30807092]
[1747793082402,3.79569241,650.32,649.12,0.30807092]
[1747793084500,3.79569241,650.32,648.88,0.25687814]
[1747793084695,0.26790148,650.31,648.89,0.62993455]
[1747793084998,0.26790148,650.31,648.9,1.77264237]
[1747793085200,0.26790148,650.31,648.91,0.62993455]
[1747793085399,0.26790148,650.31,648.92,1.77264237]
[1747793085598,0.26790148,650.31,648.93,0.93800329]
[1747793085801,0.26790148,650.31,648.94,0.62993455]
[1747793086002,0.26790148,650.31,648.95,1.77264237]
[1747793086201,0.26790148,650.31,648.96,0.62993455]
[1747793086500,0.26790148,650.31,648.97,0.93800329]
[1747793086804,0.26790148,650.31,648.98,0.62993455]
[1747793087004,0.26790148,650.31,648.99,0.62993455]
[1747793087204,3.79569241,650.32,649.0,0.62993455]
[1747793087399,0.26789013,650.3,649.01,0.62993455]
[1747793087603,0.26789013,650.3,649.02,0.62993455]
[1747793087804,0.26789013,650.3,648.97,0.30806874]
[1747793088003,0.26789013,650.3,648.98,0.93805125]
[1747793088198,0.26789013,650.3,648.99,0.62998251]
[1747793088402,0.26789013,650.3,649.0,0.62998251]
[1747793088606,0.26789013,650.3,649.01,0.62998251]
[1747793088798,0.26789013,650.3,648.98,0.30806874]
[1747793089007,0.26789013,650.3,648.99,0.63003653]
[1747793089199,0.26789013,650.3,649.0,0.63003653]
[1747793089406,0.26789013,650.3,648.98,0.30806874]
[1747793089604,0.26789013,650.3,649.01,0.30806874]
[1747793090305,3.79569241,650.32,649.01,0.30806874]
[1747793090704,3.79569241,650.32,649.02,0.30806874]
[1747793091506,0.26790457,650.31,649.02,0.30806874]
[1747793092206,0.26790457,650.31,649.03,0.30806874]
[1747793093107,0.26790457,650.31,649.04,0.30806874]
[1747793093308,3.79569241,650.32,649.04,0.30806874]
[1747793094608,0.2679087,650.31,649.04,0.30806874]
[1747793095108,0.2679087,650.31,649.05,0.62972779]
[1747793095309,0.2679087,650.31,649.06,0.62972779]
[1747793095612,0.2679087,650.31,649.07,0.62972779]
[1747793095810,0.2679087,650.31,649.08,0.62972779]
[1747793096008,0.2679087,650.31,649.09,0.93779653]
[1747793096207,5.31396938,650.42,649.1,0.62972779]
[1747793096404,5.31396938,650.42,649.11,1.77116009]
[1747793096608,5.31396938,650.42,649.12,0.62972779]
[1747793096906,0.26784993,650.41,649.13,2.07922883]
[1747793097107,0.26784993,650.41,649.14,0.62972779]
[1747793097307,0.26784993,650.41,649.15,0.62979226]
[1747793097508,0.26784993,650.41,649.16,0.937861]
[1747793097809,0.26784993,650.41,649.17,0.62979226]
[1747793098004,0.26784993,650.41,649.16,0.30806874]
[1747793098203,0.26784993,650.41,649.17,0.62977047]
[1747793098406,0.26784993,650.41,649.16,0.30806874]
[1747793098603,0.26784993,650.41,649.17,0.62980745]
[1747793098807,0.26784993,650.41,649.16,0.30806874]
[1747793099309,5.31396938,650.42,649.18,0.30806874]
[1747793099510,0.26788085,650.4,649.18,0.30806874]
[1747793100913,0.26788085,650.4,649.19,0.30806874]
[1747793101914,0.26788085,650.4,648.87,0.25687814]
[1747793102212,5.31396938,650.42,648.88,0.62989211]
[1747793102407,0.26789529,650.39,648.89,0.62989108]
[1747793102607,0.26789529,650.39,648.9,0.62989108]
[1747793102806,0.26789529,650.39,648.91,1.77043057]
[1747793103009,0.26789529,650.39,648.92,0.62989108]
[1747793103205,0.26789529,650.39,648.93,0.62989108]
[1747793103409,0.26789529,650.39,648.94,1.77043057]
[1747793103613,0.26789529,650.39,648.95,0.62989108]
[1747793103812,0.26789529,650.39,648.96,1.77043057]
[1747793104012,0.26789529,650.39,648.97,0.62989108]
[1747793104308,0.26789529,650.39,648.98,1.77043057]
[1747793104615,0.26789529,650.39,648.99,1.77043057]
[1747793104813,0.26789529,650.39,649.0,0.62989108]
[1747793105113,5.31396938,650.42,649.01,0.30803013]
[1747793105813,5.31396938,650.42,649.02,1.77038169]
[1747793106114,5.31396938,650.42,649.03,0.63000703]
[1747793106314,5.31396938,650.42,649.04,0.63000703]
[1747793106514,0.26784374,650.41,649.05,1.77038169]
[1747793106708,0.26784374,650.41,649.06,0.63000703]
[1747793106913,0.26784374,650.41,649.07,1.77038169]
[1747793107112,0.26784374,650.41,649.08,0.63000703]
[1747793107313,0.26784374,650.41,649.09,1.77038169]
[1747793107509,0.26784374,650.41,649.1,0.63000703]
[1747793107713,0.26784374,650.41,649.11,0.62970156]
[1747793107917,0.26784374,650.41,649.12,0.62970156]
[1747793108220,1.123,650.78,649.13,0.62970156]
[1747793108419,1.123,650.78,649.14,0.62970156]
[1747793108716,1.123,650.78,649.15,1.77007622]
[1747793108916,1.123,650.78,649.16,0.62970156]
[1747793109108,1.123,650.78,649.17,1.77007622]
[1747793109313,0.26777264,650.77,649.18,0.93773169]
[1747793109514,0.26777264,650.77,649.19,1.76994177]
[1747793109711,0.26777264,650.77,649.2,0.62956711]
[1747793109911,0.26777264,650.77,649.21,1.76994177]
[1747793110116,0.26777264,650.77,649.22,0.62956711]
[1747793110318,0.26777264,650.77,649.23,0.62956711]
[1747793110517,0.26777264,650.77,649.24,0.62956711]
[1747793110718,0.26777264,650.77,649.25,0.62956711]
[1747793110918,0.26777264,650.77,649.26,0.62956711]
[1747793111118,0.26777264,650.77,649.27,0.62956711]
[1747793111319,1.123,650.78,649.28,1.76994177]
[1747793111621,0.26775925,650.76,649.29,1.76994177]
[1747793111818,0.26775925,650.76,649.3,0.62956711]